bitfinex-derivatives/quotes_ETHF0:USTF0_20250903
["timestamp","ask_amount","ask_price","bid_price","bid_amount"]
[1756882806358,0.7377,4308.9,4308.8,0.9554]
[1756882806756,0.7377,4308.9,4308.8,0.6459]
[1756882807561,0.3198,4308.9,4308.8,0.7204]
[1756882807769,0.3198,4309.4,4308.8,0.6459]
[1756882807957,0.7377,4309.4,4309.3,1.5170319]
[1756882808261,0.7377,4309.4,4309.3,1.7520319]
[1756882808456,0.7377,4309.4,4309.3,1.5170319]
[1756882808658,0.4179,4309.1,4309.0,1.3082319]
[1756882808857,0.7377,4309.1,4309.0,1.7520319]
[1756882810159,0.8626,4309.0,4308.9,0.235]
[1756882810363,4.0704,4309.0,4308.9,0.235]
[1756882811259,4.0704,4309.0,4308.9,0.4371]
[1756882811656,0.8626,4309.0,4308.9,1.7520319]
[1756882811862,0.5271,4309.5,4309.4,0.2042]
[1756882812056,0.5271,4309.5,4309.1,1.1061319]
[1756882812365,0.8316,4309.5,4309.4,0.4162]
[1756882812867,0.8316,4309.5,4309.4,1.5223319]
[1756882813364,0.127,4310.0,4309.4,2.0615319]
[1756882813570,0.6338,4310.0,4309.9,1.8265319]
[1756882813770,0.6338,4310.0,4309.9,2.0615319]
[1756882814063,0.8316,4310.0,4309.9,1.7573319]
[1756882814268,0.3045,4309.9,4309.5,4.3139319]
[1756882814462,0.3045,4309.6,4309.5,4.5181319]
[1756882814662,0.7046,4309.6,4309.5,4.7531319]
[1756882814864,0.7046,4309.6,4309.5,4.9651319]
[1756882815273,0.7046,4309.6,4309.5,4.7301319]
[1756882815464,0.7046,4309.6,4309.5,4.9651319]
[1756882815670,0.7046,4309.6,4309.5,5.2693319]
[1756882815872,0.5068,4309.6,4309.5,5.2693319]
[1756882816465,0.3045,4309.6,4309.5,5.2693319]
[1756882817470,0.3045,4309.6,4309.5,5.51350826]
[1756882817868,0.3272,4310.5,4310.4,0.4162]
[1756882818065,0.3272,4310.5,4310.4,2.30570826]
[1756882818267,0.1217,4311.0,4310.4,2.30570826]
[1756882818571,0.6285,4311.0,4310.9,2.07070826]
[1756882818771,0.6285,4311.0,4310.9,2.30570826]
[1756882819168,0.1217,4312.5,4310.9,2.30570826]
[1756882819169,0.3045,4311.4,4310.9,2.30570826]
[1756882819373,0.5068,4311.3,4311.2,1.65450826]
[1756882819569,0.5068,4311.3,4311.2,0.9554]
[1756882819875,0.7046,4311.3,4311.2,0.4392]
[1756882820176,0.7046,4311.3,4311.2,0.7204]
[1756882820476,0.7046,4311.3,4311.2,0.9564]
[1756882820678,0.5068,4311.3,4311.2,0.9554]
[1756882821678,0.7046,4311.3,4311.2,0.6512]
[1756882822985,0.5068,4311.3,4311.2,0.9554]
[1756882823198,0.4262,4311.5,4311.4,0.7204]
[1756882823488,3.2078,4312.1,4311.3,0.23195]
[1756882823791,0.3045,4312.0,4311.9,2.07070826]
[1756882823988,0.3045,4312.0,4311.9,2.30570826]
[1756882824186,0.5068,4312.0,4311.9,2.30570826]
[1756882824390,0.8263,4312.0,4311.9,1.76650826]
[1756882824582,0.8263,4312.0,4311.9,0.6512]
[1756882825289,0.8263,4312.0,4311.9,0.9554]
[1756882826292,0.8263,4312.0,4311.9,0.6512]
[1756882827494,0.3045,4312.0,4311.9,0.6512]
[1756882827685,0.3045,4312.0,4311.9,2.30570826]
[1756882827891,0.5068,4312.0,4311.9,2.30570826]
[1756882828086,0.7046,4312.0,4311.9,1.76650826]
[1756882828291,0.8263,4312.0,4311.9,0.4392]
[1756882829299,0.8263,4312.0,4311.9,2.30570826]
[1756882829597,0.3045,4312.4,4311.9,2.00150826]
[1756882829896,0.1217,4312.5,4312.4,0.7204]
[1756882829897,0.8263,4312.5,4312.4,0.7204]
[1756882830095,0.8263,4312.5,4312.4,0.9554]
[1756882830402,0.5068,4312.5,4312.4,0.9554]
[1756882830699,0.3045,4312.9,4312.4,0.9554]
[1756882830998,0.7046,4312.8,4312.7,0.4162]
[1756882831199,0.7046,4312.8,4312.7,0.4392]
[1756882831793,3.2078,4313.1,4312.1,3.512]
[1756882831794,0.4001,4312.2,4312.1,3.412]
[1756882832000,0.7046,4312.2,4312.1,3.624]
[1756882832190,0.7046,4312.2,4312.1,3.859]
[1756882832392,0.7046,4312.2,4312.1,4.1632]
[1756882832791,0.5068,4312.2,4312.1,4.1632]
[1756882833295,0.7046,4312.2,4312.1,3.4428]
[1756882833798,0.7046,4312.2,4312.1,3.2078]
[1756882834000,0.7046,4312.2,4312.1,3.647]
[1756882835000,0.7046,4312.2,4312.1,3.859]
[1756882835298,0.7046,4312.2,4312.1,4.1632]
[1756882836201,0.3045,4312.2,4312.1,4.1632]
[1756882836394,0.1217,4312.5,4312.1,4.1632]
[1756882836590,0.2023,4312.4,4312.3,0.7204]
[1756882836795,0.5068,4312.4,4312.3,0.9554]
[1756882837506,0.7046,4312.4,4312.3,0.6512]
[1756882838207,0.7046,4312.4,4312.3,0.9554]
[1756882838403,0.5068,4312.4,4312.3,0.9554]
[1756882838604,0.7046,4312.4,4312.3,0.4162]
[1756882838806,0.7046,4312.4,4312.3,0.6512]
[1756882840405,0.7046,4312.4,4312.3,0.4162]
[1756882840601,0.7046,4312.4,4312.3,0.4392]
[1756882840906,0.7046,4312.4,4312.3,0.235]
[1756882841298,0.7046,4312.4,4312.3,0.4392]
[1756882841693,0.7046,4312.4,4312.3,0.6512]
[1756882841906,0.3096,4312.9,4312.4,0.3091]
[1756882842205,0.5099,4312.9,4312.8,2.04890826]
[1756882842410,3.5174,4313.1,4312.8,1.97480826]
[1756882842599,3.5174,4313.1,4313.0,0.6986]
[1756882842904,0.5099,4313.1,4313.0,0.9336]
[1756882844102,0.3096,4313.1,4313.0,0.9336]
[1756882844302,0.3096,4313.4,4313.3,0.6986]
[1756882844506,0.5099,4313.7,4313.6,0.6986]
[1756882844702,0.5099,4313.7,4313.6,0.9336]
[1756882846108,0.7173,4313.7,4313.6,0.6245]
[1756882847008,0.1218,4313.5,4313.1,3.2078]
[1756882847208,0.7173,4313.3,4313.2,0.4286]
[1756882849408,0.1218,4313.0,4312.9,1.35030826]
[1756882849616,0.8391,4313.0,4312.9,1.77890826]
[1756882849911,0.8391,4313.0,4312.9,0.1936]
[1756882850113,0.8391,4313.0,4312.9,0.4286]
[1756882851208,0.8391,4313.0,4312.9,0.1936]
[1756882851407,0.8391,4313.0,4312.9,0.4286]
[1756882851912,0.4077,4312.7,4312.6,1.54390826]
[1756882852109,0.7173,4312.7,4312.6,1.77890826]
[1756882852509,0.4077,4312.7,4312.3,4.55810826]
[1756882852709,0.3096,4312.3,4312.0,1.35030826]
[1756882852910,0.4077,4312.2,4312.1,0.235]
[1756882853214,0.7173,4312.2,4312.1,0.4286]
[1756882854007,0.4077,4312.2,4312.0,1.35030826]
[1756882854211,0.7173,4312.1,4312.0,1.35030826]
[1756882854413,0.7173,4312.1,4312.0,1.77890826]
[1756882854616,0.7173,4312.1,4312.0,1.97480826]
[1756882856719,0.7173,4312.1,4312.0,1.77890826]
[1756882858519,0.7173,4312.1,4312.0,1.35030826]
[1756882858721,0.7173,4311.8,4311.7,1.54390826]
[1756882858921,0.7173,4311.8,4311.7,1.77890826]
[1756882859222,0.1218,4311.5,4311.3,30.624]
[1756882859420,0.7173,4311.4,4311.3,30.624]
[1756882859920,0.7173,4311.4,4311.3,30.859]
[1756882863925,0.7173,4311.4,4311.3,30.624]
[1756882864123,0.7173,4311.4,4311.3,30.859]
[1756882864722,0.8391,4311.0,4310.9,0.1936]
[1756882864924,0.8391,4311.0,4310.9,0.235]
[1756882865315,0.8391,4311.0,4310.4,0.1936]
[1756882865316,0.8391,4310.5,4310.4,0.1936]
[1756882865517,0.8391,4310.5,4310.4,0.4286]
[1756882865911,0.1218,4310.0,4309.8,4.55810826]
[1756882866123,0.4314,4310.0,4309.8,4.55810826]
[1756882866425,0.4314,4310.0,4309.9,30.849]
[1756882867024,0.4314,4310.0,4309.9,30.614]
[1756882867228,0.4314,4310.0,4309.4,0.3895]
[1756882867229,0.8391,4309.5,4309.4,0.3895]
[1756882867518,0.3096,4309.4,4309.0,1.65940826]
[1756882867723,0.3096,4309.1,4309.0,2.04890826]
[1756882867918,0.3096,4309.1,4309.0,0.9336]
[1756882868123,0.5099,4309.1,4309.0,0.9336]
[1756882868719,0.5099,4309.1,4309.0,0.6986]
[1756882868914,0.5099,4309.1,4309.0,0.9336]
[1756882869424,0.7173,4309.1,4309.0,0.1936]
[1756882869627,0.7173,4309.1,4309.0,0.6245]
[1756882869824,0.7173,4309.1,4309.0,0.9343]
[1756882872228,0.3096,4309.1,4309.0,0.9343]
[1756882872427,0.7211,4309.1,4309.0,0.6245]
[1756882873127,0.7211,4309.1,4309.0,0.235]
[1756882873629,0.7211,4309.1,4309.0,0.6364]
[1756882873831,0.3096,4309.1,4309.0,0.9462]
[1756882875120,0.5144,4309.4,4309.3,0.4014]
[1756882875426,0.5144,4309.4,4309.3,0.9462]
[1756882876124,0.5144,4309.4,4309.3,0.6364]
[1756882876431,0.4115,4309.4,4309.3,0.235]
[1756882876618,0.4115,4309.4,4308.8,1.35030826]
[1756882876822,0.4115,4309.4,4308.9,0.235]
[1756882877126,0.8352,4309.0,4308.9,0.6364]
[1756882878026,0.8352,4309.0,4308.9,0.2052]
[1756882878230,0.5302,4309.0,4308.5,30.616]
[1756882878532,0.7165,4308.6,4308.5,30.616]
[1756882878733,0.7165,4308.6,4308.5,30.851]
[1756882879632,0.4115,4308.3,4308.2,1.31149893]
[1756882879830,0.7165,4308.3,4308.2,1.54649893]
[1756882880028,0.7165,4308.3,4307.9,1.10629893]
[1756882880228,0.7165,4308.3,4308.2,0.235]
[1756882881234,0.7165,4308.3,4308.2,0.4402]
[1756882881432,0.7165,4308.3,4308.2,0.6364]
[1756882881733,0.7165,4308.3,4308.2,1.74269893]
[1756882883035,0.7165,4308.3,4308.2,0.6364]
[1756882885838,0.5144,4308.3,4308.2,0.9462]
[1756882887440,0.5144,4308.3,4308.2,2.05249893]
[1756882887839,0.7165,4308.3,4308.2,0.4014]
[1756882888030,0.8352,4308.0,4307.9,0.2052]
[1756882888233,0.8352,4308.0,4307.9,0.6364]
[1756882889231,0.6331,4308.0,4307.9,0.9462]
[1756882889432,0.305,4308.3,4308.2,0.4014]
[1756882889743,0.5144,4308.3,4308.2,2.05249893]
[1756882889944,0.305,4308.3,4308.2,2.05249893]
[1756882890241,3.2078,4308.4,4308.3,0.7112]
[1756882890443,3.2078,4308.9,4308.3,0.4014]
[1756882890644,0.5144,4308.6,4308.5,1.81749893]
[1756882890842,0.5144,4308.6,4308.5,2.05249893]
[1756882892841,0.7165,4308.6,4308.5,1.74269893]
[1756882893639,0.7165,4308.6,4308.5,2.05249893]
[1756882894338,1.36373051,4308.6,4308.5,1.50769893]
[1756882894546,1.36373051,4308.6,4308.5,0.6364]
[1756882894738,1.05873051,4308.6,4308.5,0.235]
[1756882895045,1.36373051,4308.6,4308.5,0.235]
[1756882896040,0.6331,4308.0,4307.9,1.81749893]
[1756882896238,0.6331,4308.0,4307.9,2.05249893]
[1756882896447,0.1187,4308.5,4308.0,0.3098]
[1756882896647,3.2078,4308.9,4308.5,0.3098]
[1756882896849,0.4115,4308.6,4308.5,0.6364]
[1756882897043,0.7165,4308.6,4308.5,0.4014]
[1756882897250,1.36460924,4308.6,4308.5,0.4402]
[1756882897440,1.36460924,4308.6,4308.5,0.6364]
[1756882897841,0.8352,4308.0,4307.9,1.31149893]
[1756882898147,0.8352,4308.0,4307.9,1.74269893]
[1756882898846,0.8352,4308.0,4307.9,2.05249893]
[1756882899453,0.8352,4308.0,4307.9,0.4014]
[1756882899636,0.8352,4308.0,4307.9,0.6364]
[1756882900040,1.48381676,4308.0,4307.9,0.6364]
[1756882901043,1.48381676,4308.0,4307.9,1.74269893]
[1756882901251,1.48381676,4308.0,4307.9,2.05249893]
[1756882901550,0.95361676,4308.0,4307.9,2.05249893]
[1756882902149,1.16571676,4308.0,4307.9,2.05249893]
[1756882902444,1.29091676,4308.0,4307.9,2.05249893]
[1756882905854,0.64861676,4308.0,4307.9,2.05249893]
[1756882906155,0.2975,4308.8,4307.9,5.97482893]
[1756882906344,0.2975,4308.8,4308.7,1.10629893]
[1756882906547,3.5053,4308.9,4308.7,1.34129893]
[1756882906755,0.2975,4308.9,4308.7,1.34129893]
[1756882907253,0.1187,4309.0,4308.7,1.34129893]
[1756882907555,0.2975,4308.9,4308.7,1.34129893]
[1756882907850,0.2121,4308.9,4308.7,1.34129893]
[1756882908058,0.5096,4308.9,4308.8,40.8]
[1756882908649,0.2975,4308.8,4308.7,1.34129893]
[1756882908852,0.2975,4308.9,4308.4,3.2078]
[1756882909064,0.7099,4308.9,4308.8,1.10629893]
[1756882909259,0.7099,4308.9,4308.8,1.34129893]
[1756882910063,0.5096,4308.9,4308.8,1.34129893]
[1756882910360,0.2975,4308.9,4308.8,1.34129893]
[1756882911359,0.5096,4308.9,4308.8,1.34129893]
[1756882911559,0.7099,4308.9,4308.8,0.235]
[1756882911760,0.2975,4308.8,4308.7,1.10629893]
[1756882912059,0.7099,4308.8,4308.7,1.34129893]
[1756882912454,0.2975,4308.7,4308.5,40.8]
[1756882912659,0.7099,4308.7,4308.6,0.235]
[1756882912959,0.7099,4308.7,4308.3,1.10629893]
[1756882913154,0.7099,4308.4,4308.3,1.10629893]
[1756882913461,0.7099,4308.4,4308.3,1.34129893]
[1756882913762,0.5096,4308.4,4308.3,1.34129893]
[1756882914256,3.2078,4309.1,4308.3,5.34129893]
[1756882914462,0.2975,4309.4,4309.0,1.10629893]
[1756882914758,0.5096,4309.4,4309.3,1.10629893]
[1756882915363,0.7099,4309.4,4309.3,0.235]
[1756882915560,0.7099,4309.4,4308.6,3.2078]
[1756882915561,0.2975,4309.3,4309.1,1.10629893]
[1756882915860,0.7099,4309.3,4309.2,0.235]
[1756882916060,0.7099,4309.3,4309.2,41.035]
[1756882916454,0.7099,4309.3,4309.2,0.235]
[1756882916655,0.7099,4308.9,4308.8,1.10629893]
[1756882916855,0.7099,4308.9,4308.8,41.035]
[1756882917256,0.7099,4308.9,4308.8,0.235]
[1756882918456,0.1252,4309.0,4308.8,1.10629893]
[1756882918655,0.7099,4308.9,4308.8,1.10629893]
[1756882918864,0.7099,4308.9,4308.8,1.34129893]
[1756882919360,3.2078,4309.1,4308.8,1.34129893]
[1756882919557,3.5053,4309.1,4308.8,1.34129893]
[1756882920352,0.2975,4309.4,4308.8,1.34129893]
[1756882920555,0.2975,4309.3,4308.6,3.2078]
[1756882920761,0.7099,4309.3,4309.2,1.10629893]
[1756882920956,0.7099,4309.3,4309.2,1.34129893]
[1756882921365,0.2975,4309.3,4309.2,1.34129893]
[1756882922064,0.5096,4309.3,4309.2,1.34129893]
[1756882922264,0.2975,4309.3,4309.2,1.34129893]
[1756882922567,0.4193,4309.5,4309.2,1.34129893]
[1756882923360,0.2975,4309.4,4309.3,40.8]
[1756882924661,0.2975,4309.4,4309.3,41.035]
[1756882924863,0.2975,4309.9,4309.3,41.035]
[1756882925164,0.2975,4310.2,4309.8,1.10629893]
[1756882925369,0.2975,4310.2,4310.1,1.10629893]
[1756882925570,0.5096,4310.2,4310.1,1.10629893]
[1756882926566,0.2975,4310.2,4310.1,1.10629893]
[1756882927371,0.2975,4310.4,4310.1,1.10629893]
[1756882927572,0.2975,4310.4,4310.3,1.10629893]
[1756882927772,0.2975,4310.4,4310.3,1.34129893]
[1756882927973,0.2975,4310.7,4310.3,45.34909893]
[1756882928175,0.2975,4310.7,4310.6,1.10629893]
[1756882928371,0.1252,4311.5,4310.6,1.10629893]
[1756882928372,0.4227,4311.0,4310.6,2.21259786]
[1756882928569,3.2078,4311.3,4310.9,1.10629893]
[1756882928570,0.2975,4311.3,4310.9,1.10629893]
[1756882928772,0.2975,4311.4,4311.2,1.10629893]
[1756882929075,0.1252,4311.5,4311.2,1.10629893]
[1756882929468,0.2975,4311.5,4311.2,1.10629893]
[1756882929668,3.333,4312.0,4311.2,1.10629893]
[1756882929669,3.5451,4312.0,4311.4,3.2078]
[1756882929874,3.8426,4312.0,4311.9,1.10629893]
[1756882930068,3.8426,4312.0,4311.9,1.34129893]
[1756882930269,4.0429,4312.0,4311.9,1.34129893]
[1756882930972,4.0429,4312.0,4311.9,1.10629893]
[1756882931374,4.0429,4312.0,4311.9,1.34129893]
[1756882931578,4.0429,4312.0,4311.9,0.235]
[1756882932779,3.7454,4312.0,4311.5,40.8]
[1756882932979,3.7454,4312.0,4311.6,0.235]
[1756882932980,0.7083,4311.7,4311.6,0.235]
[1756882934074,0.5047,4311.7,4311.6,0.235]
[1756882934280,0.2939,4311.7,4311.6,0.235]
[1756882935981,0.4975,4311.7,4311.6,0.235]
[1756882938077,0.2939,4311.6,4311.5,40.8]
[1756882938277,0.2939,4311.6,4311.5,41.035]
[1756882940487,0.2939,4311.6,4311.5,40.8]
[1756882940786,0.2939,4311.6,4311.5,41.035]
[1756882942386,0.2939,4311.6,4311.5,40.8]
[1756882942577,0.2939,4311.6,4311.5,41.035]
[1756882944891,0.2939,4311.9,4311.5,41.035]
[1756882945091,0.1252,4312.0,4311.5,41.035]
[1756882945386,0.2939,4311.8,4311.6,0.235]
[1756882945585,0.2939,4311.9,4311.6,0.235]
[1756882946090,0.2939,4311.9,4311.7,0.235]
[1756882946483,0.3288,4312.0,4311.5,40.8]
[1756882946484,0.2036,4311.6,4311.5,40.8]
[1756882946684,0.4975,4311.6,4311.5,41.035]
[1756882947087,0.2939,4311.6,4311.5,41.035]
[1756882947783,0.1252,4312.0,4311.5,41.035]
[1756882947784,0.2939,4311.9,4311.5,41.035]
[1756882947985,0.3288,4312.5,4311.8,7.67086921]
[1756882948180,0.2939,4312.4,4311.9,0.235]
[1756882948583,0.3288,4312.5,4311.9,0.235]
[1756882948780,0.4975,4311.9,4311.8,4.46306921]
[1756882948980,0.4975,4311.9,4311.8,4.69806921]
[1756882949187,0.2939,4311.9,4311.8,7.90586921]
[1756882950195,0.2939,4312.4,4311.8,7.90586921]
[1756882950490,0.2939,4312.3,4311.8,7.90586921]
[1756882950887,0.1252,4312.5,4311.8,7.90586921]
[1756882951092,0.4975,4311.9,4311.8,7.67086921]
[1756882951292,0.7083,4311.9,4311.8,3.4428]
[1756882951892,0.7083,4311.9,4311.8,0.235]
[1756882953493,0.4975,4311.9,4311.8,1.58372306]
[1756882953882,0.7083,4311.9,4311.8,1.58372306]
[1756882954789,0.1252,4312.5,4311.8,1.58372306]
[1756882954996,0.8335,4312.5,4312.4,1.34872306]
[1756882955188,0.8335,4312.5,4312.4,1.58372306]
[1756882956392,0.8335,4312.5,4312.4,0.235]
[1756882956590,0.8335,4312.5,4312.4,1.58372306]
[1756882958891,0.4191,4312.5,4312.4,1.58372306]
[1756882959091,0.2939,4312.9,4312.4,1.58372306]
[1756882959285,0.4975,4312.9,4312.8,1.34872306]
[1756882959484,0.4975,4312.9,4312.8,42.38372306]
[1756882959690,0.2939,4312.9,4312.8,42.38372306]
[1756882961289,3.5017,4313.2,4312.8,42.38372306]
[1756882961489,3.2078,4313.2,4312.8,42.38372306]
[1756882961793,0.3209,4313.2,4312.9,3.2078]
[1756882961993,0.3209,4313.2,4313.1,1.34872306]
[1756882965490,0.7157,4313.2,4312.9,3.2078]
[1756882965696,0.1278,4313.0,4312.9,3.2078]
[1756882965887,0.8435,4313.0,4312.9,3.2078]
[1756882966093,0.8435,4313.0,4312.9,3.4428]
[1756882966298,0.8435,4313.0,4312.9,0.235]
[1756882966691,0.6488,4313.0,4312.9,0.235]
[1756882967602,0.8435,4313.0,4312.9,0.235]
[1756882970599,0.3209,4312.9,4312.8,42.14872306]
[1756882970903,0.3209,4312.9,4312.8,42.38372306]
[1756882975701,0.3209,4312.9,4312.8,41.035]
[1756882975903,0.3209,4312.9,4312.8,42.14872306]
[1756882976108,0.3209,4312.9,4312.8,42.38372306]
[1756882976509,0.3209,4312.9,4312.8,45.59152306]
[1756882976807,0.3209,4312.9,4312.8,42.38372306]
[1756882979409,0.1278,4313.0,4312.8,45.59152306]
[1756882979610,0.4487,4313.0,4312.8,45.59152306]
[1756882980010,0.3209,4313.0,4312.8,45.59152306]
[1756882980205,0.1252,4313.5,4312.8,45.35652306]
[1756882980410,0.521,4312.9,4312.8,44.0078]
[1756882980604,0.521,4312.9,4312.8,40.8]
[1756882980807,0.521,4312.9,4312.8,41.035]
[1756882981513,0.3209,4312.9,4312.8,42.38372306]
[1756882982415,0.3209,4312.9,4312.8,41.035]
[1756882982611,0.7157,4312.7,4312.6,1.34872306]
[1756882982816,0.1278,4312.5,4312.2,3.2078]
[1756882983013,0.8435,4312.5,4312.4,1.34872306]
[1756882983213,0.8435,4312.5,4312.4,1.58372306]
[1756882984120,0.8435,4312.5,4312.0,31.96372306]
[1756882984121,0.5226,4312.5,4312.0,31.96372306]
[1756882984327,0.7157,4312.1,4312.0,31.96372306]
[1756882984525,0.7157,4312.1,4312.0,32.19872306]
[1756882984726,0.7157,4312.1,4312.0,72.99872306]
[1756882985427,0.521,4312.1,4312.0,72.99872306]
[1756882986425,0.521,4312.1,4312.0,72.76372306]
[1756882986729,0.521,4312.1,4312.0,72.99872306]
[1756882988333,0.3209,4312.1,4312.0,72.99872306]
[1756882989739,0.3209,4312.1,4312.0,72.76372306]
[1756882989938,0.3209,4312.1,4312.0,72.99872306]
[1756882992730,0.3209,4312.1,4312.0,32.19872306]
[1756882994233,0.2894,4311.4,4311.0,3.2078]
[1756882994438,0.8124,4311.0,4310.9,1.34872306]
[1756882994733,0.8124,4311.0,4310.9,42.38372306]
[1756882995336,0.8124,4311.0,4310.9,42.14872306]
[1756882995533,0.6017,4311.0,4310.9,1.58372306]
[1756882996328,0.8124,4311.0,4310.9,1.58372306]
[1756882997236,0.2894,4311.4,4310.9,1.58372306]
[1756882997428,0.1192,4312.0,4310.9,1.58372306]
[1756882997429,0.1192,4312.0,4311.3,1.34872306]
[1756882997630,0.1192,4311.5,4311.4,0.235]
[1756882997835,0.4086,4311.5,4311.4,1.58372306]
[1756882998034,0.6017,4311.5,4311.4,1.58372306]
[1756882998542,0.4086,4311.5,4311.4,1.58372306]
[1756882998742,0.4086,4311.5,4311.4,1.34872306]
[1756882999038,0.4086,4311.5,4311.4,1.58372306]
[1756882999432,0.4086,4311.5,4311.4,1.3394238]
[1756882999635,0.6017,4311.5,4311.4,1.1044238]
[1756882999836,0.8124,4311.5,4311.4,1.1044238]
[1756883000036,0.8124,4311.5,4311.4,1.3394238]
[1756883000229,0.8124,4311.5,4311.4,1.1044238]
[1756883000440,0.8124,4311.5,4311.4,1.3394238]
[1756883001834,0.4086,4311.5,4311.4,1.3394238]
[1756883002041,0.8124,4311.5,4311.4,1.3394238]
[1756883002941,0.8124,4311.5,4311.0,3.2078]
[1756883003236,0.8124,4311.5,4311.4,1.1044238]
[1756883003437,0.8124,4311.5,4311.4,1.3394238]
[1756883004340,0.4086,4311.5,4311.4,1.3394238]
[1756883004530,0.2894,4311.8,4311.4,1.3394238]
[1756883004736,0.2894,4311.8,4311.7,1.1044238]
[1756883004935,0.2894,4311.8,4311.7,1.3394238]
[1756883005135,0.2894,4311.8,4311.7,1.1044238]
[1756883005336,0.4825,4311.8,4311.7,1.3394238]
[1756883005645,0.2894,4311.8,4311.7,1.3394238]
[1756883006937,0.4825,4311.8,4311.7,1.3394238]
[1756883007137,0.6932,4311.8,4311.7,1.1044238]
[1756883007338,0.6932,4311.8,4311.7,1.3394238]
[1756883007739,0.2894,4311.8,4311.7,1.3394238]
[1756883008037,0.4825,4311.8,4311.7,1.1044238]
[1756883008245,0.4825,4311.8,4311.7,1.3394238]
[1756883009142,0.6932,4311.8,4311.7,1.3394238]
[1756883010640,0.4825,4311.8,4311.7,1.3394238]
[1756883010840,0.2894,4311.8,4311.7,1.3394238]
[1756883011444,0.2894,4311.8,4311.7,42.1394238]
[1756883014442,0.4172,4312.5,4311.7,47.4757676]
[1756883014643,0.4172,4312.5,4312.4,1.1044238]
[1756883014838,0.2894,4312.8,4312.4,1.3394238]
[1756883015349,0.2894,4312.8,4312.7,1.1044238]
[1756883015544,0.1192,4314.0,4312.7,1.1044238]
[1756883015545,0.2894,4313.3,4312.7,1.3394238]
[1756883015847,0.4086,4313.5,4313.2,1.1044238]
[1756883016040,0.1192,4313.5,4313.3,0.235]
[1756883016241,0.1192,4313.5,4312.9,3.2078]
[1756883016242,0.1192,4313.0,4312.9,3.2078]
[1756883016439,0.4086,4313.0,4312.9,4.5472238]
[1756883017047,0.4086,4313.0,4312.9,4.3122238]
[1756883017345,0.4825,4313.4,4312.9,4.5472238]
[1756883017547,0.4825,4313.4,4313.3,1.1044238]
[1756883017743,0.6932,4313.4,4313.3,1.3394238]
[1756883018044,0.6932,4313.4,4313.3,42.1394238]
[1756883019746,0.6932,4313.4,4313.3,41.9044238]
[1756883019941,0.6932,4313.4,4313.3,42.1394238]
[1756883020637,0.6932,4313.4,4313.3,41.035]
[1756883020840,0.6932,4313.4,4313.3,0.235]
[1756883021042,0.6017,4313.0,4312.9,3.2078]
[1756883021346,0.6017,4313.0,4312.9,45.3472238]
[1756883021743,0.4086,4313.0,4312.9,45.3472238]
[1756883022347,0.1192,4313.5,4312.9,45.3472238]
[1756883022647,0.6325,4313.5,4313.4,1.1044238]
[1756883022848,0.6325,4313.5,4313.4,1.3394238]
[1756883023045,0.844,4313.5,4313.4,1.1044238]
[1756883023346,0.844,4313.5,4313.4,1.3394238]
[1756883027045,0.844,4313.5,4313.4,1.1044238]
[1756883027353,0.844,4313.5,4313.4,1.3394238]
[1756883029652,0.8432,4313.0,4312.9,40.8]
[1756883029853,0.8432,4313.0,4312.9,42.1394238]
[1756883030548,0.6317,4313.0,4312.9,42.1394238]
[1756883030846,0.302,4313.3,4312.9,42.1394238]
[1756883031146,0.4204,4313.0,4312.9,40.8]
[1756883031352,0.4204,4313.0,4312.9,41.035]
[1756883031750,0.4204,4313.0,4312.9,40.8]
[1756883031946,0.1184,4312.5,4312.1,30.616]
[1756883032246,0.1184,4312.5,4312.2,0.235]
[1756883032451,0.4204,4312.5,4312.4,1.1044238]
[1756883032860,0.8432,4312.5,4312.4,1.1044238]
[1756883033552,0.4204,4312.5,4312.4,1.3394238]
[1756883033851,0.1184,4313.0,4312.4,1.3394238]
[1756883033852,0.3297,4313.0,4312.4,1.3394238]
[1756883034144,0.3297,4313.0,4312.9,1.1044238]
[1756883034145,0.6317,4313.0,4312.9,1.1044238]
[1756883034354,0.6317,4313.0,4312.9,1.3394238]
[1756883035250,0.8432,4313.0,4312.9,0.235]
[1756883035451,0.5412,4313.0,4312.9,1.3394238]
[1756883035855,0.8432,4313.0,4312.9,1.3394238]
[1756883041849,0.8432,4313.0,4312.9,1.1044238]
[1756883042054,0.8432,4313.0,4312.9,1.3394238]
[1756883042455,0.4204,4313.0,4312.9,1.3394238]
[1756883042754,3.2078,4313.4,4312.9,1.3394238]
[1756883042955,3.4191,4313.4,4313.3,1.1044238]
[1756883043156,3.4191,4313.4,4313.3,1.3394238]
[1756883043558,3.7211,4313.4,4313.3,1.3394238]
[1756883044458,3.5098,4313.4,4313.3,1.3394238]
[1756883044650,3.2078,4313.4,4313.3,1.3394238]
[1756883045048,3.5098,4313.4,4313.3,1.3394238]
[1756883046558,3.5098,4313.4,4313.3,1.1044238]
[1756883046759,3.7211,4313.4,4313.3,1.3394238]
[1756883047363,3.5098,4313.4,4313.3,1.3394238]
[1756883047762,3.5098,4313.4,4313.3,2.4438476]
[1756883047953,3.5098,4313.4,4313.3,1.3394238]
[1756883048154,3.5098,4313.4,4313.3,42.1394238]
[1756883051264,3.9326,4313.4,4313.3,1.1044238]
[1756883051455,3.9326,4313.4,4313.3,0.235]
[1756883052156,3.6306,4313.4,4313.1,41.9044238]
[1756883052358,0.7054,4313.3,4313.2,0.235]
[1756883052958,0.5055,4313.3,4313.2,1.3394238]
[1756883053163,0.5055,4313.3,4313.2,0.235]
[1756883056162,0.2994,4313.3,4313.2,0.235]
[1756883056860,0.5055,4313.3,4313.2,0.235]
[1756883058267,0.2994,4313.3,4313.2,0.235]
[1756883059266,0.1184,4313.5,4313.2,42.1394238]
[1756883059569,0.4178,4313.5,4313.4,1.1044238]